bitfinex/quotes_BTCUSD_20250513
["timestamp","ask_amount","ask_price","bid_price","bid_amount"]
[1747096891974,1.99215168,102510.0,102500.0,0.012]
[1747096892204,0.3,102490.0,102470.0,0.0325]
[1747096892413,0.84888966,102480.0,102470.0,0.0325]
[1747096892630,0.8611702,102480.0,102470.0,0.0325]
[1747096895354,0.8631702,102480.0,102470.0,0.0325]
[1747096896689,0.2289559,102480.0,102470.0,0.29390649]
[1747096896918,0.2289559,102480.0,102470.0,0.49884441]
[1747096897141,0.21919838,102480.0,102470.0,0.54889023]
[1747096897362,0.21919838,102480.0,102470.0,0.28414754]
[1747096897561,0.20944057,102480.0,102470.0,0.30000798]
[1747096897806,0.20944057,102480.0,102470.0,0.29024903]
[1747096899122,0.20944057,102480.0,102470.0,0.28414754]
[1747096899551,0.20944057,102480.0,102470.0,0.0325]
[1747096901735,0.50944057,102480.0,102470.0,0.0325]
[1747096901968,0.84944057,102480.0,102470.0,0.0325]
[1747096912526,0.54944057,102480.0,102470.0,0.0325]
[1747096914680,0.54944057,102480.0,102470.0,0.03860209]
[1747096915072,0.54944057,102480.0,102470.0,0.04343465]
[1747096916797,0.54944057,102480.0,102470.0,0.29508219]
[1747096917105,0.74752057,102480.0,102470.0,0.29508219]
[1747096918501,0.74752057,102480.0,102470.0,0.04343465]
[1747096920982,0.74752057,102480.0,102470.0,0.03733256]
[1747096921185,0.74752057,102480.0,102470.0,0.04343463]
[1747096926667,0.77746338,102480.0,102470.0,0.04343463]
[1747096927051,0.74752057,102480.0,102470.0,0.04343463]
[1747096929268,0.74752057,102480.0,102470.0,0.04343477]
[1747096931766,0.74752057,102480.0,102470.0,0.03733256]
[1747096931985,0.74752057,102480.0,102470.0,0.03732741]
[1747096932182,0.74752057,102480.0,102470.0,0.0434296]
[1747096933040,0.74752057,102480.0,102470.0,0.0274296]
[1747096933757,0.84337487,102480.0,102470.0,0.0109296]
[1747096934336,0.84337487,102480.0,102470.0,0.0270296]
[1747096934786,0.84337487,102480.0,102470.0,0.0109296]
[1747096935924,0.84337487,102480.0,102460.0,0.0329]
[1747096935925,0.20493783,102470.0,102460.0,0.0329]
[1747096936154,0.20493783,102470.0,102460.0,0.03305214]
[1747096936359,0.21722449,102470.0,102460.0,0.0391545]
[1747096936562,0.21722449,102470.0,102460.0,0.04398217]
[1747096937904,0.21922449,102470.0,102460.0,0.05598217]
[1747096940477,0.55922449,102470.0,102460.0,0.05598217]
[1747096942772,0.55922449,102470.0,102460.0,0.0511545]
[1747096943627,0.55922449,102470.0,102460.0,0.30280204]
[1747096944935,0.55922449,102470.0,102460.0,0.05115478]
[1747096945970,0.55922449,102470.0,102460.0,0.03545478]
[1747096946939,0.55922449,102470.0,102460.0,0.05205478]
[1747096947622,0.55922449,102470.0,102460.0,0.03545478]
[1747096948003,0.5891673,102470.0,102460.0,0.03545478]
[1747096948210,0.55922449,102470.0,102460.0,0.03545478]
[1747096949850,0.55922449,102470.0,102460.0,0.05045478]
[1747096951244,0.55922449,102470.0,102460.0,0.03545478]
[1747096951488,0.55922449,102470.0,102460.0,0.04027895]
[1747096952560,0.55922449,102470.0,102460.0,0.02407895]
[1747096953189,0.55922449,102470.0,102460.0,0.01797631]
[1747096953857,0.55922449,102470.0,102460.0,0.01315214]
[1747096954074,0.57572449,102470.0,102460.0,0.01315214]
[1747096954285,0.55922449,102470.0,102460.0,0.01315214]
[1747096954491,0.5891673,102470.0,102460.0,0.01315214]
[1747096954707,0.55922449,102470.0,102460.0,0.01315214]
[1747096957194,0.55922449,102470.0,102460.0,0.02945214]
[1747096963626,0.55922449,102470.0,102460.0,0.04445214]
[1747096965991,0.75658449,102470.0,102460.0,0.2095591]
[1747096966213,0.75658449,102470.0,102460.0,0.21438385]
[1747096966445,0.75658449,102470.0,102460.0,0.21332227]
[1747096966662,0.75658449,102470.0,102460.0,0.21942516]
[1747096967554,0.56898315,102470.0,102460.0,0.57973024]
[1747096967777,0.75654449,102470.0,102460.0,0.21942516]
[1747096967999,0.22898296,102470.0,102460.0,0.59924957]
[1747096968180,0.22898296,102470.0,102460.0,0.58949005]
[1747096969350,0.20946573,102470.0,102460.0,0.21942516]
[1747096969759,0.20946573,102470.0,102460.0,0.22918506]
[1747096970419,0.20946573,102470.0,102460.0,0.22436031]
[1747096971280,0.20946573,102470.0,102460.0,0.31077999]
[1747096972490,0.20946573,102470.0,102460.0,0.30102009]
[1747096972721,0.20946573,102470.0,102460.0,0.31077999]
[1747096974491,0.20946573,102470.0,102460.0,0.50597811]
[1747096974700,0.02404475,102470.0,102460.0,0.70744652]
[1747096974929,0.02404475,102470.0,102460.0,0.74150612]
[1747096974930,0.01428666,102470.0,102460.0,0.74150612]
[1747096976099,0.01428666,102470.0,102460.0,0.74150397]
[1747096976981,0.01428666,102470.0,102460.0,0.99303061]
[1747096977197,0.01428666,102470.0,102460.0,1.33303061]
[1747096977849,0.01328666,102470.0,102460.0,1.32703061]
[1747096978058,0.01328666,102470.0,102460.0,1.72903061]
[1747096978441,0.01328666,102470.0,102460.0,1.73403061]
[1747096978940,0.01328666,102470.0,102460.0,1.63817631]
[1747096979388,0.001,102490.0,102480.0,0.75888616]
[1747096979601,0.001,102490.0,102480.0,1.0584012]
[1747096980556,0.001,102490.0,102480.0,1.4584012]
[1747096980796,0.003,102490.0,102480.0,1.4584012]
[1747096981010,0.003,102490.0,102480.0,1.5542555]
[1747096981438,0.01775619,102490.0,102480.0,1.5542555]
[1747096981708,0.008,102490.0,102480.0,1.5641151]
[1747096982119,0.01075628,102490.0,102480.0,1.5641151]
[1747096982342,0.001,102490.0,102480.0,1.4702608]
[1747096982549,0.01075628,102490.0,102480.0,1.4702608]
[1747096983200,0.02051275,102490.0,102480.0,1.4702608]
[1747096984464,0.001,102490.0,102480.0,1.4702608]
[1747096985106,0.001,102490.0,102480.0,1.48480165]
[1747096985402,0.001,102490.0,102480.0,1.58065595]
[1747096986957,0.01134136,102490.0,102480.0,1.58065595]
[1747096987214,0.01134136,102490.0,102480.0,1.57865595]
[1747096987445,0.01134136,102490.0,102480.0,1.58165595]
[1747096987663,0.01134136,102490.0,102480.0,1.58565595]
[1747096995551,0.01134136,102490.0,102480.0,1.48980165]
[1747096995963,0.03085402,102490.0,102480.0,1.68660165]
[1747096996195,0.04061078,102490.0,102480.0,1.68660165]
[1747096996409,0.24550871,102490.0,102480.0,1.48004432]
[1747096996637,0.23575252,102490.0,102480.0,0.98196552]
[1747096996874,0.22599605,102490.0,102480.0,0.99930128]
[1747096997117,0.22599605,102490.0,102480.0,0.36048168]
[1747096997318,0.24229605,102490.0,102480.0,0.26462738]
[1747096997547,0.25789605,102490.0,102480.0,0.01310074]
[1747096997991,0.45465605,102490.0,102480.0,0.01310074]
[1747096998193,0.45465605,102490.0,102480.0,0.004]
[1747096998401,0.45465605,102490.0,102480.0,0.005]
[1747096999023,0.45465605,102490.0,102480.0,0.001]
[1747096999202,0.45465605,102490.0,102480.0,0.003]
[1747097000670,1.08751035,102490.0,102480.0,0.003]
[1747097001547,0.2302963,102470.0,102460.0,0.2516172]
[1747097001959,0.24060629,102470.0,102460.0,0.2516172]
[1747097002156,0.24060629,102470.0,102460.0,0.25771901]
[1747097003067,0.22500629,102470.0,102460.0,0.25771901]
[1747097003520,0.22500629,102470.0,102460.0,0.45291713]
[1747097003738,0.22500629,102470.0,102460.0,0.50503646]
[1747097004397,0.02982665,102470.0,102460.0,0.62240951]
[1747097004627,0.02006818,102470.0,102460.0,0.62240951]
[1747097005483,0.02982646,102470.0,102460.0,0.62240951]
[1747097005739,0.02006818,102470.0,102460.0,0.62240951]
[1747097005960,0.02006818,102470.0,102460.0,0.64828907]
[1747097006208,0.02006818,102470.0,102460.0,0.62240951]
[1747097006422,0.02982656,102470.0,102460.0,0.62240951]
[1747097006865,0.02982656,102470.0,102460.0,0.62340951]
[1747097007079,0.03958503,102470.0,102460.0,0.62340951]
[1747097007726,0.03958503,102470.0,102460.0,0.37188287]
[1747097007939,0.03958503,102470.0,102460.0,0.62340951]
[1747097008381,0.04934369,102470.0,102460.0,0.62340951]
[1747097008595,0.03958503,102470.0,102460.0,0.62340951]
[1747097008773,0.04934369,102470.0,102460.0,0.62340951]
[1747097009606,0.05910311,102470.0,102460.0,0.62340951]
[1747097009824,0.22500667,102470.0,102460.0,0.36633321]
[1747097010038,0.22500667,102470.0,102460.0,0.35657331]
[1747097010261,0.22500667,102470.0,102460.0,0.36633321]
[1747097010465,0.22500667,102470.0,102460.0,0.37609302]
[1747097010953,0.22500667,102470.0,102460.0,0.48519655]
[1747097011605,0.22500667,102470.0,102460.0,0.49495617]
[1747097012330,0.22500667,102470.0,102460.0,0.26071901]
[1747097012549,0.22500667,102470.0,102460.0,0.46567703]
[1747097012741,0.22500667,102470.0,102460.0,0.47543674]
[1747097012955,0.22500667,102470.0,102460.0,0.26071901]
[1747097013156,0.22500667,102470.0,102460.0,0.46567684]
[1747097013369,0.22500667,102470.0,102460.0,0.26071901]
[1747097015360,0.24010667,102470.0,102460.0,0.26071901]
[1747097015778,0.22500667,102470.0,102460.0,0.26071901]
[1747097017039,0.25580667,102470.0,102460.0,0.26071901]
[1747097017210,0.25580667,102470.0,102460.0,0.26552459]
[1747097017906,0.25580667,102470.0,102460.0,0.25942278]
[1747097018154,0.25580667,102470.0,102460.0,0.00309056]
[1747097019176,0.79236667,102470.0,102460.0,0.00309056]
[1747097022423,0.88822097,102470.0,102460.0,0.00309056]
[1747097022613,1.13974761,102470.0,102460.0,0.00309056]
[1747097022861,1.45428846,102470.0,102460.0,0.00309056]
[1747097023536,1.56428846,102470.0,102460.0,0.00209056]
[1747097023726,1.57428846,102470.0,102460.0,0.00109056]
[1747097023937,1.58128846,102470.0,102460.0,0.00209056]
[1747097024256,1.57128846,102470.0,102460.0,0.00109056]
[1747097024520,1.58128846,102470.0,102460.0,0.00209056]
[1747097025288,1.57428846,102470.0,102460.0,0.00109056]
[1747097025512,1.58028846,102470.0,102460.0,0.00209056]
[1747097026651,2.26348846,102470.0,102460.0,0.00209056]
[1747097026866,2.34917122,102470.0,102460.0,0.00209056]
[1747097027085,2.29055122,102470.0,102460.0,0.00209056]
[1747097027296,2.32049403,102470.0,102460.0,0.00209056]
[1747097027416,2.30055122,102470.0,102460.0,0.00209056]
[1747097029276,0.60097906,102450.0,102440.0,0.001]
[1747097029522,1.35169565,102450.0,102440.0,0.001]
[1747097030248,1.36169565,102450.0,102440.0,0.002]
[1747097031678,1.36869565,102450.0,102440.0,0.003]
[1747097032054,0.97553565,102450.0,102440.0,0.003]
[1747097032249,1.36873565,102450.0,102440.0,0.003]
[1747097032457,0.72400901,102450.0,102440.0,0.003]
[1747097032687,1.70266816,102450.0,102440.0,0.003]
[1747097032897,1.68696816,102450.0,102440.0,0.003]
[1747097033095,1.29376816,102450.0,102440.0,0.003]
[1747097033302,1.68696816,102450.0,102440.0,0.003]
[1747097033505,1.29376816,102450.0,102440.0,0.003]
[1747097033756,1.68692816,102450.0,102440.0,0.003]
[1747097034304,1.67092816,102450.0,102440.0,0.003]
[1747097034794,0.97776816,102450.0,102440.0,0.003]
[1747097034948,1.37092816,102450.0,102440.0,0.003]
[1747097037877,0.24191386,102450.0,102440.0,0.0331]
[1747097038092,0.43831386,102450.0,102440.0,0.0331]
[1747097038311,0.77831386,102450.0,102440.0,0.0331]
[1747097039145,0.97503386,102450.0,102440.0,0.0331]
[1747097041529,0.97499386,102450.0,102440.0,0.0331]
[1747097042431,0.97459386,102450.0,102440.0,0.0331]
[1747097048521,0.97451386,102450.0,102440.0,0.0331]
[1747097052292,0.97451386,102450.0,102440.0,0.03920395]
[1747097053331,0.97451386,102450.0,102440.0,0.04402907]
[1747097053573,0.97451386,102450.0,102440.0,0.03792512]
[1747097054565,0.97451386,102450.0,102440.0,0.0331]
[1747097057408,1.08626816,102450.0,102440.0,0.003]
[1747097057624,1.08626816,102450.0,102430.0,0.0155081]
[1747097057625,0.57659785,102440.0,102430.0,0.0155081]
[1747097057853,1.52397879,102440.0,102430.0,0.01555682]
[1747097058114,2.07632666,102440.0,102430.0,0.01555682]
[1747097059201,2.08132666,102440.0,102430.0,0.01555682]
[1747097059627,2.08732666,102440.0,102430.0,0.01555682]
[1747097060082,2.08132666,102440.0,102430.0,0.01555682]
[1747097060298,2.00266006,102440.0,102430.0,0.01555682]
[1747097060515,2.01366006,102440.0,102430.0,0.01655682]
[1747097060941,2.00866006,102440.0,102430.0,0.01655682]
[1747097061156,2.01466006,102440.0,102430.0,0.01655682]
[1747097066749,2.39050006,102440.0,102430.0,0.01655682]
[1747097067124,2.40630006,102440.0,102430.0,0.01655682]
[1747097070383,2.10630006,102440.0,102430.0,0.01655682]
[1747097071829,1.18602209,102410.0,102400.0,0.00120997]
[1747097072088,1.73570042,102410.0,102400.0,0.00120997]
[1747097072577,1.73570042,102410.0,102360.0,0.12770036]
[1747097072578,0.53535065,102380.0,102360.0,0.12770036]
[1747097072834,2.09608593,102370.0,102360.0,0.12770036]
[1747097073096,1.52062678,102370.0,102360.0,0.11988367]
[1747097073295,1.54767667,102370.0,102360.0,0.11988367]
[1747097073505,1.54767667,102370.0,102360.0,0.11206698]
[1747097073506,0.73367667,102370.0,102360.0,0.11206698]
[1747097073723,1.51655667,102370.0,102360.0,0.11406698]
[1747097073931,1.51665186,102370.0,102360.0,0.11406698]
[1747097074179,1.55855186,102370.0,102360.0,0.10425029]
[1747097074396,1.546041,102370.0,102360.0,0.10425029]
[1747097074631,1.154041,102370.0,102360.0,0.0964336]
[1747097074848,0.54517811,102350.0,102340.0,0.00115756]
[1747097075072,0.86140665,102350.0,102340.0,0.00115756]
[1747097075516,0.55499003,102330.0,102320.0,1.0155081]
[1747097075768,1.47424577,102330.0,102320.0,1.0105081]
[1747097076439,1.51988662,102330.0,102320.0,1.0105081]
[1747097076663,1.83098174,102330.0,102320.0,0.22559338]
[1747097076898,1.44102174,102330.0,102320.0,0.21777669]
[1747097077191,0.97784174,102330.0,102320.0,0.21777669]
[1747097077451,2.07650089,102330.0,102320.0,0.21077669]
[1747097077914,1.68446089,102330.0,102320.0,0.21077669]
[1747097078130,0.22644659,102330.0,102320.0,0.24207669]
[1747097078358,0.22444659,102330.0,102320.0,0.24207669]
[1747097078565,0.57044659,102330.0,102320.0,0.24307669]
[1747097078795,0.96248659,102330.0,102320.0,0.24307669]
[1747097079001,0.62048659,102330.0,102320.0,0.24207669]
[1747097079204,0.96848659,102330.0,102320.0,0.24307669]
[1747097079422,0.97448659,102330.0,102320.0,0.24307669]
[1747097080968,1.27448659,102330.0,102320.0,0.24307669]
[1747097081683,1.37034089,102330.0,102320.0,0.24307669]
[1747097082173,1.37034089,102330.0,102320.0,0.22767669]
[1747097082628,1.3674766,102330.0,102320.0,0.24327669]
[1747097083084,1.3675566,102330.0,102320.0,0.21177669]
[1747097083305,2.17246364,102330.0,102320.0,0.21177669]
[1747097083804,1.88700449,102330.0,102320.0,0.21177669]
[1747097084039,1.58700449,102330.0,102320.0,0.21177669]
[1747097084695,1.59668332,102330.0,102320.0,0.21177669]
[1747097086758,1.62818332,102330.0,102320.0,0.21177669]
[1747097086977,1.93818332,102330.0,102320.0,0.10173051]
[1747097087620,1.55606332,102330.0,102320.0,0.10173051]
[1747097087819,1.89672332,102330.0,102320.0,0.10173051]
[1747097088027,1.50456332,102330.0,102320.0,0.10173051]
[1747097088232,1.89672332,102330.0,102320.0,0.10173051]
[1747097089737,1.59672332,102330.0,102320.0,0.10173051]
[1747097098971,1.59672332,102330.0,102320.0,0.05967307]
[1747097099354,1.59672332,102330.0,102320.0,0.05184843]
[1747097099556,2.01920332,102330.0,102320.0,0.05184843]
[1747097099802,1.06759543,102330.0,102320.0,0.07582379]
[1747097100020,1.40265012,102330.0,102320.0,0.07582379]
[1747097100236,1.01037012,102330.0,102320.0,0.07582379]
[1747097100454,1.4901966,102330.0,102320.0,0.07582379]
[1747097100865,1.74265012,102330.0,102320.0,0.07582379]
[1747097101519,1.4901966,102330.0,102320.0,0.07582379]
[1747097101740,1.0979166,102330.0,102320.0,0.07582379]
[1747097101961,1.4901966,102330.0,102320.0,0.08064221]
[1747097102182,0.6754366,102330.0,102320.0,0.08064221]
[1747097102404,1.0677166,102330.0,102320.0,0.08064221]
[1747097102610,1.0675966,102330.0,102320.0,0.08064221]
[1747097102824,0.6754366,102330.0,102320.0,0.08064221]
[1747097103516,1.0675566,102330.0,102320.0,0.06474221]
[1747097103773,1.32001012,102330.0,102320.0,0.08014221]
[1747097104403,1.0675566,102330.0,102320.0,0.08014221]
[1747097104638,1.32001012,102330.0,102320.0,0.08014221]
[1747097105094,1.0675566,102330.0,102320.0,0.08014221]
[1747097105319,0.9754366,102330.0,102320.0,0.08014221]
[1747097105526,1.3675566,102330.0,102320.0,0.08014221]
[1747097105741,0.9754366,102330.0,102320.0,0.08014221]
[1747097105965,1.3675566,102330.0,102320.0,0.08014221]
[1747097106213,1.00537941,102330.0,102320.0,0.08014221]
[1747097106429,1.88704449,102330.0,102320.0,0.04101906]
[1747097106659,2.34487181,102330.0,102320.0,0.04101906]
[1747097106874,2.34487181,102330.0,102320.0,0.03319591]
[1747097107307,2.15103829,102330.0,102320.0,0.02055434]
[1747097107561,2.40349181,102330.0,102320.0,0.02055434]
[1747097107780,2.40349181,102330.0,102320.0,0.01273119]
[1747097107994,2.40349181,102330.0,102320.0,0.00490804]
[1747097108437,0.84523826,102320.0,102310.0,0.0157]
[1747097108649,1.19354608,102320.0,102310.0,0.0308]
[1747097108880,1.22599583,102320.0,102310.0,0.0308]
[1747097109102,1.22599583,102320.0,102310.0,0.03563122]
[1747097109542,0.67354231,102320.0,102310.0,0.0308]
[1747097109769,0.97008801,102320.0,102310.0,0.0308]
[1747097109990,0.22038014,102320.0,102310.0,0.28325352]
[1747097110215,0.22138014,102320.0,102310.0,0.49151185]
[1747097110457,0.56238014,102320.0,102310.0,0.49762378]
[1747097110668,0.02691494,102320.0,102310.0,0.54209336]
[1747097110879,0.03668762,102320.0,102310.0,0.53231982]
[1747097111096,0.23215282,102320.0,102310.0,0.51717163]
[1747097111335,0.55260717,102320.0,102310.0,0.03991174]
[1747097111545,0.56237995,102320.0,102310.0,0.49762359]
[1747097111771,0.57215321,102320.0,102310.0,0.29236526]
[1747097111984,0.56238043,102320.0,102310.0,0.29236526]
[1747097114024,0.75866043,102320.0,102310.0,0.49762378]
[1747097114239,0.75866043,102320.0,102310.0,0.29236526]
[1747097114659,0.41866043,102320.0,102310.0,0.29236526]
[1747097117208,0.41866043,102320.0,102310.0,0.03991174]
[1747097117417,0.41866043,102320.0,102310.0,0.29236526]
[1747097117675,0.75866043,102320.0,102310.0,0.29236526]
[1747097117895,0.75866043,102320.0,102310.0,0.03991174]
[1747097118133,0.95470043,102320.0,102310.0,0.03991174]
[1747097118569,0.95454043,102320.0,102310.0,0.29236526]
[1747097119454,0.95450043,102320.0,102310.0,0.29236526]
[1747097119885,0.56238043,102320.0,102310.0,0.29236526]
[1747097120277,0.75846043,102320.0,102310.0,0.29236526]
[1747097120492,0.56238043,102320.0,102310.0,0.29236526]
[1747097120707,0.75846043,102320.0,102310.0,0.29236526]
[1747097121133,0.56238043,102320.0,102310.0,0.29236526]
[1747097121349,0.75914043,102320.0,102310.0,0.29236526]
[1747097123835,0.75914043,102320.0,102310.0,0.03991174]
[1747097124282,0.41914043,102320.0,102310.0,0.29236526]
[1747097124720,0.22238043,102320.0,102310.0,0.29236526]
[1747097124932,0.41914043,102320.0,102310.0,0.29236526]
[1747097125564,0.41918043,102320.0,102310.0,0.29236526]
[1747097128631,0.75918043,102320.0,102310.0,0.29236526]
[1747097129731,0.75918043,102320.0,102310.0,0.03991174]
[1747097129957,0.75918043,102320.0,102310.0,0.29236526]
[1747097130169,0.75918043,102320.0,102310.0,0.03991174]
[1747097131450,0.76347587,102320.0,102310.0,0.03991174]
[1747097132558,0.76291587,102320.0,102310.0,0.29236526]
[1747097133054,0.76291587,102320.0,102310.0,0.03991174]
[1747097133272,0.76291587,102320.0,102310.0,0.29236526]
[1747097135527,0.76291587,102320.0,102310.0,0.03991174]
[1747097137667,0.76291587,102320.0,102310.0,0.03991172]
[1747097139498,0.76291587,102320.0,102310.0,0.29236523]
[1747097139750,0.76291587,102320.0,102310.0,0.29236522]
[1747097142135,0.76291587,102320.0,102310.0,0.30213943]
[1747097142386,0.23644865,102320.0,102310.0,0.58998328]
[1747097142622,0.23644855,102320.0,102310.0,0.51105989]
[1747097142870,0.03121019,102320.0,102310.0,0.52083353]
[1747097143137,0.23644865,102320.0,102310.0,0.51105998]
[1747097143358,0.22667587,102320.0,102310.0,0.50128606]
[1747097144419,0.22667587,102320.0,102310.0,0.49151204]
[1747097144631,0.21690281,102320.0,102310.0,0.50128616]
[1747097144841,0.21690281,102320.0,102310.0,0.5208341]
[1747097145779,0.21690281,102320.0,102310.0,0.53060793]
[1747097146238,0.21690281,102320.0,102310.0,0.53060745]
[1747097148390,0.21690281,102320.0,102310.0,0.53060697]
[1747097150294,0.03121058,102320.0,102310.0,0.53060649]
[1747097151259,0.04098306,102320.0,102310.0,0.53060649]
[1747097151468,0.03121,102320.0,102310.0,0.62646079]
[1747097151671,0.0409824,102320.0,102310.0,0.62646079]
[1747097151886,0.05075546,102320.0,102310.0,0.62646079]
[1747097152344,0.05075546,102320.0,102310.0,0.63257195]
[1747097152519,0.06052862,102320.0,102310.0,0.63257195]
[1747097152892,0.06052862,102320.0,102310.0,0.72842625]
[1747097153973,0.06052862,102320.0,102310.0,0.63257195]
[1747097154971,0.01166435,102320.0,102310.0,0.63257195]
[1747097155180,0.03120962,102320.0,102310.0,0.63257195]
[1747097155397,0.04098268,102320.0,102310.0,0.63257195]
[1747097157237,0.23644855,102320.0,102310.0,0.60325133]
[1747097157674,0.23644855,102320.0,102310.0,0.61302545]
[1747097157894,0.60097291,102310.0,102300.0,4e-05]
[1747097158118,0.99682721,102310.0,102300.0,4e-05]
[1747097158384,0.5550741,102290.0,102280.0,0.00604341]
[1747097158612,0.9635141,102290.0,102280.0,0.00604341]
[1747097158836,0.97319827,102290.0,102280.0,0.00120515]
[1747097159058,0.95699827,102290.0,102280.0,0.00120515]
[1747097159269,0.76075827,102290.0,102280.0,0.25365867]
[1747097159513,0.56475827,102290.0,102280.0,0.25365867]
[1747097159748,0.56475827,102290.0,102280.0,0.28465867]
[1747097159749,0.76090434,102290.0,102280.0,0.28465867]
[1747097160617,0.22490434,102290.0,102280.0,0.38051297]
[1747097160828,0.22590434,102290.0,102280.0,0.38534777]
[1747097161263,0.22690434,102290.0,102280.0,0.38534777]
[1747097161492,0.22690434,102290.0,102280.0,0.39526087]
[1747097161962,0.22690434,102290.0,102280.0,0.49111517]
[1747097162802,0.22690434,102290.0,102280.0,0.39526087]
[1747097164130,0.2171287,102290.0,102280.0,0.39526087]
[1747097170320,0.2171287,102290.0,102280.0,0.38534777]
[1747097170683,0.2171287,102290.0,102280.0,0.02123995]
[1747097170874,0.2171287,102290.0,102280.0,0.00603995]
[1747097172582,0.4131287,102290.0,102280.0,0.00603995]
[1747097174296,0.7531287,102290.0,102280.0,0.00603995]
[1747097174734,0.7693287,102290.0,102280.0,0.00603995]
[1747097174967,0.7693287,102290.0,102280.0,0.00120515]
[1747097175835,0.7849287,102290.0,102280.0,0.00120515]
[1747097179028,1.13323652,102290.0,102280.0,0.00120515]
[1747097179883,0.880783,102290.0,102280.0,0.00120515]
[1747097180312,1.14777737,102290.0,102280.0,0.00120515]
[1747097180513,1.44777737,102290.0,102280.0,0.00120515]
[1747097181435,1.44677737,102290.0,102280.0,0.00120515]
[1747097181649,1.64285737,102290.0,102280.0,0.00120515]
[1747097181832,1.64789737,102290.0,102280.0,0.00120515]
[1747097182291,1.39044385,102290.0,102280.0,0.00120515]
[1747097182494,1.64189737,102290.0,102280.0,0.00120515]
[1747097182698,1.64889737,102290.0,102280.0,0.00120515]
[1747097182881,1.65689737,102290.0,102280.0,0.00120515]
[1747097184316,2.34009737,102290.0,102280.0,0.00120515]
[1747097185875,2.04009737,102290.0,102280.0,0.00120515]
[1747097187847,2.46269737,102290.0,102280.0,0.00120515]
[1747097191754,1.77949737,102290.0,102280.0,0.00120515]
[1747097196050,1.68737737,102290.0,102280.0,0.00120515]
[1747097196284,1.440663,102290.0,102280.0,0.00120515]
[1747097196477,1.780663,102290.0,102280.0,0.00120515]
[1747097196682,1.79520385,102290.0,102280.0,0.00120515]
[1747097197024,1.06312385,102290.0,102280.0,0.00120515]
[1747097197236,0.2301287,102290.0,102280.0,0.03320515]
[1747097197661,0.5701287,102290.0,102280.0,0.03320515]
[1747097197867,0.4261687,102290.0,102280.0,0.03320515]
[1747097198369,0.7661687,102290.0,102280.0,0.03320515]
[1747097200671,0.7661287,102290.0,102280.0,0.03320515]
[1747097201291,0.5701287,102290.0,102280.0,0.03320515]
[1747097201504,0.7661287,102290.0,102280.0,0.03320515]
[1747097201728,0.5701287,102290.0,102280.0,0.03320515]
[1747097201950,0.5701287,102290.0,102280.0,0.55963014]
[1747097201951,0.02201981,102290.0,102280.0,0.55963014]
[1747097202175,0.02201981,102290.0,102280.0,0.65548444]
[1747097202682,0.03179517,102290.0,102280.0,0.65548444]
[1747097203127,0.01401981,102290.0,102280.0,0.65548444]
[1747097203342,0.01501981,102290.0,102280.0,0.65548444]
[1747097204437,0.01501981,102290.0,102280.0,1.05548444]
[1747097205316,0.01401981,102290.0,102280.0,1.05548444]
[1747097205533,0.01501981,102290.0,102280.0,1.05648444]
[1747097205739,0.00801981,102290.0,102280.0,1.05648444]
[1747097205985,0.00901981,102290.0,102280.0,1.05748444]
[1747097206442,0.00801981,102290.0,102280.0,1.05648444]
[1747097206688,0.00801981,102290.0,102280.0,1.00738471]
[1747097206911,0.00901981,102290.0,102280.0,1.00838471]
[1747097209848,0.00901981,102290.0,102280.0,1.01449612]
[1747097215166,0.00901981,102290.0,102280.0,0.7620426]
[1747097215393,0.00901981,102290.0,102280.0,1.01449612]
[1747097215590,0.00901981,102290.0,102280.0,1.11035042]
[1747097218104,0.00901981,102290.0,102280.0,1.33077127]
[1747097218813,0.00701981,102290.0,102280.0,1.33377127]
[1747097219027,0.01101981,102290.0,102280.0,1.33577127]
[1747097219237,0.01101981,102290.0,102280.0,1.33477127]
[1747097219423,0.00901981,102290.0,102280.0,1.33377127]
[1747097219728,0.01301981,102290.0,102280.0,1.33577127]
[1747097220301,0.01301981,102290.0,102280.0,1.93822479]
[1747097220515,0.01301981,102290.0,102280.0,1.68577127]
[1747097220766,0.0786666,102320.0,102310.0,0.2248058]
[1747097220971,0.09821187,102320.0,102310.0,0.64869779]
[1747097221179,0.10798484,102320.0,102310.0,0.64869779]
[1747097221382,0.10798484,102320.0,102310.0,0.6548092]
[1747097221580,0.0786666,102320.0,102310.0,0.6548092]
[1747097221789,0.0786666,102320.0,102310.0,0.6568092]
[1747097222041,0.0786666,102320.0,102310.0,0.66940389]
[1747097222251,0.08843919,102320.0,102310.0,0.66940389]
[1747097222673,0.00977163,102330.0,102320.0,0.25618382]
[1747097222885,0.02931556,102330.0,102320.0,0.59705866]
[1747097223115,0.22476166,102330.0,102320.0,0.49886475]
[1747097223349,0.00977163,102330.0,102320.0,0.50863734]
[1747097223576,0.02931556,102330.0,102320.0,0.60449164]
[1747097223804,0.00991808,102330.0,102320.0,0.61060106]
[1747097223998,0.00014664,102330.0,102320.0,0.61060106]
[1747097224219,0.00814664,102330.0,102320.0,1.144941]
[1747097224652,0.00414664,102330.0,102320.0,1.147941]
[1747097224867,0.00014664,102330.0,102320.0,1.14994041]
[1747097225277,0.00014664,102330.0,102320.0,1.15294041]
[1747097225724,0.00014664,102330.0,102320.0,1.15694041]
[1747097226383,0.00014664,102330.0,102320.0,1.35274041]
[1747097226920,0.49432438,102360.0,102350.0,0.21494822]
[1747097226921,0.41072798,102360.0,102350.0,0.21494822]
[1747097227123,0.21492798,102360.0,102350.0,0.54462339]
[1747097227326,0.55492798,102360.0,102350.0,0.55439321]
[1747097227545,0.35953782,102360.0,102350.0,0.56050271]
[1747097227749,0.57446542,102360.0,102350.0,0.54096288]
[1747097227954,0.56469665,102360.0,102350.0,0.54096288]
[1747097228406,0.01585967,102360.0,102350.0,0.55073308]
[1747097228615,0.04516693,102360.0,102350.0,0.66612711]
[1747097228826,0.05493637,102360.0,102350.0,0.66612711]
[1747097229037,0.01585957,102360.0,102350.0,0.66612711]
[1747097229252,0.02562853,102360.0,102350.0,0.66612711]
[1747097229446,0.01585957,102360.0,102350.0,0.66612711]
[1747097229892,0.0060909,102360.0,102350.0,0.66612711]
[1747097230126,0.0060909,102360.0,102350.0,0.91858063]
[1747097231329,0.00600206,102360.0,102350.0,0.66612711]
[1747097231535,0.02553969,102360.0,102350.0,0.66612711]
[1747097231746,0.22092851,102360.0,102350.0,0.65635739]
[1747097231947,0.03530894,102360.0,102350.0,0.66612711]
[1747097232578,0.02553969,102360.0,102350.0,0.66612711]
[1747097232786,0.03530884,102360.0,102350.0,0.66612711]
[1747097232989,0.23069824,102360.0,102350.0,0.78645553]
[1747097233202,0.23069824,102360.0,102350.0,0.61023564]
[1747097233403,0.04507876,102360.0,102350.0,0.62000546]
[1747097233612,0.04507876,102360.0,102350.0,0.71585976]
[1747097233819,0.04507876,102360.0,102350.0,0.72562948]
[1747097235660,0.24046758,102360.0,102350.0,0.71585976]
[1747097236076,0.04507876,102360.0,102350.0,0.72562948]
[1747097236986,0.03530884,102360.0,102350.0,0.72562948]
[1747097237623,0.02553969,102360.0,102350.0,0.72562948]
[1747097237829,0.00600206,102360.0,102350.0,0.72562948]